[Event "ETCC Women 2013"]
[Site "Warsaw"]
[Date "2013.11.11"]
[Round "4"]
[White "Khotenashvili, Bela"]
[Black "Vojinovic, Jovana"]
[Result "1-0"]
[ECO "A40"]
[WhiteElo "2524"]
[BlackElo "2352"]
[PlyCount "123"]
[EventDate "2013.??.??"]
[EventCountry "POL"]
[WhiteTeam "Georgien"]
[BlackTeam "Serbien"]
[WhiteTeamCountry "GEO"]
[BlackTeamCountry "SRB"]
[TimeControl "40/5400+30:1800+30"]

1. d4 {[%emt 0:00:00]} g6 {[%emt 0:00:00]} 2. c4 {[%emt 0:00:10]} Bg7 {[%emt 0:
00:24]} 3. Nf3 {[%emt 0:00:07]} d6 {[%emt 0:01:00]} 4. Nc3 {[%emt 0:00:42]} Bg4
{[%emt 0:00:31]} 5. e3 {[%emt 0:06:26]} c5 {[%emt 0:06:16]} 6. Be2 {[%emt 0:05:
58]} Nc6 {[%emt 0:03:19]} 7. d5 {[%emt 0:00:55]} Bxc3+ {[%emt 0:08:39]} 8. bxc3
{[%emt 0:00:10]} Na5 {[%emt 0:03:36]} 9. e4 {[%emt 0:01:58]} Nf6 {[%emt 0:01:
02]} 10. Qa4+ {[%emt 0:05:05]} Bd7 {[%emt 0:13:59]} 11. Qc2 {[%emt 0:00:15]}
Bg4 {[%emt 0:03:48]} 12. h3 {[%emt 0:10:47]} Bxf3 {[%emt 0:00:37]} 13. Bxf3 {
[%emt 0:00:01]} O-O {[%emt 0:00:24]} 14. Be2 {[%emt 0:06:30]} Re8 {[%emt 0:05:
28]} 15. O-O {[%emt 0:02:49]} Nd7 {[%emt 0:03:35]} 16. f4 {[%emt 0:11:39]} e6 {
[%emt 0:11:58]} 17. Rb1 {[%emt 0:12:59]} Qe7 {[%emt 0:02:28]} 18. Qa4 {[%emt 0:
04:25]} b6 {[%emt 0:00:08]} 19. Bf3 {[%emt 0:04:03]} Rad8 {[%emt 0:02:29]} 20.
Re1 {[%emt 0:07:15]} e5 {[%emt 0:01:36]} 21. f5 {[%emt 0:02:12]} Qh4 {[%emt 0:
01:37]} 22. Be3 {[%emt 0:01:20]} g5 {[%emt 0:08:42]} 23. Bf2 {[%emt 0:02:49]}
Qh6 {[%emt 0:00:04]} 24. h4 {[%emt 0:03:57]} gxh4 {[%emt 0:01:12]} 25. Be3 {
[%emt 0:00:33]} Qg7 {[%emt 0:00:09]} 26. Kf2 {[%emt 0:00:28]} Nf6 {[%emt 0:00:
03]} 27. Ke2 {[%emt 0:00:19]} Ng4 {[%emt 0:03:02]} 28. Bd2 {[%emt 0:01:42]} Nh2
{[%emt 0:00:36]} 29. Rh1 {[%emt 0:00:23]} Qg3 {[%emt 0:00:19]} 30. Be1 {[%emt
0:00:17]} Qf4 {[%emt 0:00:03]} 31. Bd2 {[%emt 0:00:11]} Qg3 {[%emt 0:00:02]}
32. Be1 {[%emt 0:00:48]} Qf4 {[%emt 0:00:03]} 33. Bxh4 {[%emt 0:03:00]} Qxh4 {
[%emt 0:00:13]} 34. g3 {[%emt 0:00:03]} Qg5 {[%emt 0:02:39]} 35. Rxh2 {[%emt 0:
00:06]} f6 {[%emt 0:00:04]} 36. Rg1 {[%emt 0:02:02]} Qg7 {[%emt 0:00:10]} 37.
Kd3 {[%emt 0:00:30]} Qd7 {[%emt 0:03:21]} 38. Qa3 {[%emt 0:00:39]} Re7 {[%emt
0:00:07]} 39. g4 {[%emt 0:03:39]} Rg7 {[%emt 0:00:09]} 40. g5 {[%emt 0:00:00]}
Rxg5 {[%emt 0:00:00]} 41. Rxg5+ {[%emt 0:02:54]} fxg5 {[%emt 0:15:03]} 42. Qc1
{[%emt 0:03:13]} Qg7 {[%emt 0:01:18]} 43. Qh1 {[%emt 0:03:03]} Rf8 {[%emt 0:05:
01]} 44. Rh6 {[%emt 0:00:50]} Nb7 {[%emt 0:12:24]} 45. Qh5 {[%emt 0:07:17]} a6
{[%emt 0:00:37]} 46. Bg4 {[%emt 0:01:12]} Rf7 {[%emt 0:02:53]} 47. a4 {[%emt 0:
09:41]} Rf8 {[%emt 0:00:05]} 48. Kc2 {[%emt 0:01:34]} Na5 {[%emt 0:01:03]} 49.
Rxd6 {[%emt 0:02:02]} Nxc4 {[%emt 0:00:04]} 50. Rc6 {[%emt 0:00:16]} Ne3+ {
[%emt 0:02:35]} 51. Kd2 {[%emt 0:00:52]} Nf1+ {[%emt 0:00:17]} 52. Kd3 {[%emt
0:00:15]} c4+ {[%emt 0:03:46]} 53. Rxc4 {[%emt 0:00:02]} Ng3 {[%emt 0:00:19]}
54. Qh3 {[%emt 0:01:06]} h5 {[%emt 0:00:29]} 55. Qxg3 {[%emt 0:01:14]} hxg4 {
[%emt 0:00:04]} 56. Qxg4 {[%emt 0:00:08]} Rf6 {[%emt 0:00:30]} 57. Qh5 {[%emt
0:00:29]} Rf8 {[%emt 0:05:49]} 58. Rc6 {[%emt 0:00:15]} Rf6 {[%emt 0:00:01]}
59. Qe8+ {[%emt 0:01:45]} Rf8 {[%emt 0:00:05]} 60. Qg6 {[%emt 0:00:16]} Rf7 {
[%emt 0:00:56]} 61. Rxb6 {[%emt 0:00:30]} g4 {[%emt 0:00:27]} 62. Rb8+ {[%emt
0:00:09]} 1-0

[Event "ETCC Women 2013"]
[Site "Warsaw"]
[Date "2013.11.11"]
[Round "4"]
[White "Klinova, Masha"]
[Black "Ushenina, Anna"]
[Result "1/2-1/2"]
[ECO "B51"]
[WhiteElo "2291"]
[BlackElo "2492"]
[PlyCount "82"]
[EventDate "2013.??.??"]
[EventCountry "POL"]
[WhiteTeam "Israel"]
[BlackTeam "Ukraine"]
[WhiteTeamCountry "ISR"]
[BlackTeamCountry "UKR"]
[TimeControl "40/5400+30:1800+30"]

1. e4 {[%emt 0:00:00]} c5 {[%emt 0:00:00]} 2. Nf3 {[%emt 0:00:00]} d6 {[%emt 0:
00:15]} 3. Bb5+ {[%emt 0:00:00]} Nd7 {[%emt 0:00:33]} 4. O-O {[%emt 0:01:35]}
a6 {[%emt 0:00:23]} 5. Bxd7+ {[%emt 0:00:30]} Bxd7 {[%emt 0:00:05]} 6. d4 {
[%emt 0:00:19]} cxd4 {[%emt 0:00:15]} 7. Qxd4 {[%emt 0:00:13]} e5 {[%emt 0:00:
19]} 8. Qd3 {[%emt 0:00:33]} h6 {[%emt 0:00:58]} 9. c4 {[%emt 0:00:57]} b5 {
[%emt 0:00:05]} 10. Nfd2 {[%emt 0:04:41]} Nf6 {[%emt 0:03:27]} 11. Nc3 {[%emt
0:03:56]} Qb8 {[%emt 0:00:14]} 12. b3 {[%emt 0:04:34]} Be7 {[%emt 0:00:25]} 13.
a4 {[%emt 0:05:53]} bxa4 {[%emt 0:01:04]} 14. Nxa4 {[%emt 0:04:21]} O-O {[%emt
0:00:20]} 15. Nc3 {[%emt 0:07:33]} Rc8 {[%emt 0:09:39]} 16. Ba3 {[%emt 0:05:40]
} a5 {[%emt 0:08:06]} 17. Rfd1 {[%emt 0:11:10]} Rc6 {[%emt 0:03:31]} 18. Rab1 {
[%emt 0:04:39]} Rb6 {[%emt 0:02:50]} 19. Na4 {[%emt 0:05:57]} Rb7 {[%emt 0:24:
41]} 20. Qc2 {[%emt 0:11:49]} Qc7 {[%emt 0:12:12]} 21. Nf1 {[%emt 0:04:15]}
Bxa4 {[%emt 0:06:33]} 22. bxa4 {[%emt 0:00:10]} Rxb1 {[%emt 0:00:09]} 23. Rxb1
{[%emt 0:01:35]} Qc6 {[%emt 0:00:07]} 24. f3 {[%emt 0:06:38]} Bd8 {[%emt 0:01:
40]} 25. Qb3 {[%emt 0:02:07]} Nd7 {[%emt 0:00:47]} 26. Qb5 {[%emt 0:02:17]}
Bb6+ {[%emt 0:01:35]} 27. Kh1 {[%emt 0:00:43]} Rc8 {[%emt 0:02:27]} 28. Ng3 {
[%emt 0:01:55]} g6 {[%emt 0:01:40]} 29. h3 {[%emt 0:02:25]} Kg7 {[%emt 0:10:37]
} 30. Ne2 {[%emt 0:02:09]} Bc5 {[%emt 0:04:26]} 31. Bxc5 {[%emt 0:01:30]} Nxc5
{[%emt 0:00:06]} 32. Nc3 {[%emt 0:01:45]} Ne6 {[%emt 0:04:38]} 33. Qxa5 {[%emt
0:02:02]} Qxc4 {[%emt 0:00:05]} 34. Nd5 {[%emt 0:00:31]} Qa2 {[%emt 0:00:46]}
35. Rg1 {[%emt 0:01:44]} Nd4 {[%emt 0:01:44]} 36. Qa6 {[%emt 0:01:06]} Rc6 {
[%emt 0:00:30]} 37. Qa7 {[%emt 0:00:30]} Qd2 {[%emt 0:00:31]} 38. Qe7 {[%emt 0:
00:36]} Qg5 {[%emt 0:00:14]} 39. Qxg5 {[%emt 0:00:17]} hxg5 {[%emt 0:00:01]}
40. Ra1 {[%emt 0:00:00]} Nb3 {[%emt 0:00:00]} 41. Rb1 {[%emt 0:01:07]} Nc5 {
[%emt 0:01:12]} 1/2-1/2

[Event "ETCC Women 2013"]
[Site "Warsaw"]
[Date "2013.11.11"]
[Round "4"]
[White "Kosteniuk, Alexandra"]
[Black "Iwanow, Anna"]
[Result "1-0"]
[ECO "C97"]
[WhiteElo "2510"]
[BlackElo "2206"]
[PlyCount "111"]
[EventDate "2013.??.??"]
[EventCountry "POL"]
[WhiteTeam "Russland"]
[BlackTeam "Polen"]
[WhiteTeamCountry "RUS"]
[BlackTeamCountry "POL"]
[TimeControl "40/5400+30:1800+30"]

1. e4 {[%emt 0:00:00]} e5 {[%emt 0:00:00]} 2. Nf3 {[%emt 0:00:00]} Nc6 {[%emt
0:00:00]} 3. Bb5 {[%emt 0:00:00]} a6 {[%emt 0:00:03]} 4. Ba4 {[%emt 0:00:00]}
Nf6 {[%emt 0:00:14]} 5. O-O {[%emt 0:00:07]} Be7 {[%emt 0:00:13]} 6. Re1 {
[%emt 0:01:26]} b5 {[%emt 0:00:18]} 7. Bb3 {[%emt 0:00:06]} d6 {[%emt 0:00:07]}
8. c3 {[%emt 0:00:10]} O-O {[%emt 0:00:23]} 9. h3 {[%emt 0:00:06]} Na5 {[%emt
0:00:13]} 10. Bc2 {[%emt 0:00:06]} c5 {[%emt 0:00:10]} 11. d4 {[%emt 0:00:07]}
Qc7 {[%emt 0:00:29]} 12. d5 {[%emt 0:00:11]} Ne8 {[%emt 0:01:31]} 13. b3 {
[%emt 0:06:04]} Bd7 {[%emt 0:00:42]} 14. Nbd2 {[%emt 0:02:55]} g6 {[%emt 0:03:
11]} 15. Nf1 {[%emt 0:05:11]} Ng7 {[%emt 0:00:33]} 16. N3h2 {[%emt 0:03:16]}
Nb7 {[%emt 0:06:51]} 17. Bh6 {[%emt 0:12:52]} c4 {[%emt 0:06:34]} 18. Qd2 {
[%emt 0:12:59]} cxb3 {[%emt 0:05:47]} 19. axb3 {[%emt 0:00:44]} Rfc8 {[%emt 0:
01:32]} 20. Re3 {[%emt 0:00:44]} Nd8 {[%emt 0:12:41]} 21. Rf3 {[%emt 0:07:17]}
f6 {[%emt 0:06:58]} 22. Ne3 {[%emt 0:12:13]} Nf7 {[%emt 0:06:55]} 23. Bxg7 {
[%emt 0:00:17]} Kxg7 {[%emt 0:00:08]} 24. h4 {[%emt 0:02:46]} Qb6 {[%emt 0:10:
08]} 25. Rg3 {[%emt 0:03:18]} Kh8 {[%emt 0:02:26]} 26. Nhg4 {[%emt 0:00:47]} b4
{[%emt 0:04:07]} 27. cxb4 {[%emt 0:01:31]} Qd4 {[%emt 0:01:23]} 28. Qe1 {[%emt
0:04:59]} Bb5 {[%emt 0:07:55]} 29. Ra2 {[%emt 0:08:09]} Rc3 {[%emt 0:05:11]}
30. Rf3 {[%emt 0:02:23]} Rac8 {[%emt 0:09:55]} 31. Nxf6 {[%emt 0:00:42]} Nh6 {
[%emt 0:01:01]} 32. h5 {[%emt 0:03:33]} Kg7 {[%emt 0:02:11]} 33. Bd1 {[%emt 0:
07:44]} Bxf6 {[%emt 0:01:23]} 34. Nc2 {[%emt 0:00:04]} Rxc2 {[%emt 0:01:24]}
35. Rxc2 {[%emt 0:00:06]} Rxc2 {[%emt 0:00:34]} 36. Bxc2 {[%emt 0:00:02]} Bg5 {
[%emt 0:02:13]} 37. Qc3 {[%emt 0:02:03]} Qxc3 {[%emt 0:01:03]} 38. Rxc3 {[%emt
0:00:01]} gxh5 {[%emt 0:01:30]} 39. Bd3 {[%emt 0:01:24]} Bxd3 {[%emt 0:00:47]}
40. Rxd3 {[%emt 0:00:00]} Nf7 {[%emt 0:00:00]} 41. Rd1 {[%emt 0:00:46]} Kf6 {
[%emt 0:11:03]} 42. Kf1 {[%emt 0:05:32]} Nd8 {[%emt 0:06:24]} 43. Ra1 {[%emt 0:
02:08]} Bd2 {[%emt 0:03:12]} 44. Rxa6 {[%emt 0:03:58]} Bxb4 {[%emt 0:00:04]}
45. Ra8 {[%emt 0:00:36]} Ke7 {[%emt 0:05:51]} 46. Ra7+ {[%emt 0:00:06]} Kf6 {
[%emt 0:01:04]} 47. Rd7 {[%emt 0:02:34]} Nf7 {[%emt 0:00:34]} 48. Rb7 {[%emt 0:
00:05]} Bc3 {[%emt 0:00:31]} 49. b4 {[%emt 0:00:08]} Nd8 {[%emt 0:00:36]} 50.
Rd7 {[%emt 0:00:21]} Bxb4 {[%emt 0:00:15]} 51. Rxd8 {[%emt 0:00:05]} h4 {[%emt
0:00:15]} 52. Rg8 {[%emt 0:01:40]} Bd2 {[%emt 0:00:47]} 53. Ke2 {[%emt 0:00:31]
} Bc1 {[%emt 0:00:15]} 54. Kd3 {[%emt 0:01:24]} h6 {[%emt 0:00:11]} 55. Kc4 {
[%emt 0:00:18]} Bd2 {[%emt 0:00:28]} 56. Re8 {[%emt 0:00:33]} 1-0

[Event "ETCC Women 2013"]
[Site "Warsaw"]
[Date "2013.11.11"]
[Round "4"]
[White "Kulon, Klaudia"]
[Black "Gunina, Valentina"]
[Result "0-1"]
[ECO "B19"]
[WhiteElo "2276"]
[BlackElo "2509"]
[PlyCount "92"]
[EventDate "2013.??.??"]
[EventCountry "POL"]
[WhiteTeam "Polen"]
[BlackTeam "Russland"]
[WhiteTeamCountry "POL"]
[BlackTeamCountry "RUS"]
[TimeControl "40/5400+30:1800+30"]

1. e4 {[%emt 0:00:00]} c6 {[%emt 0:00:00]} 2. d4 {[%emt 0:00:00]} d5 {[%emt 0:
00:00]} 3. Nc3 {[%emt 0:00:00]} dxe4 {[%emt 0:00:18]} 4. Nxe4 {[%emt 0:00:00]}
Bf5 {[%emt 0:00:32]} 5. Ng3 {[%emt 0:00:01]} Bg6 {[%emt 0:00:00]} 6. h4 {[%emt
0:00:31]} h6 {[%emt 0:00:00]} 7. Nf3 {[%emt 0:00:12]} Nd7 {[%emt 0:00:02]} 8.
h5 {[%emt 0:00:07]} Bh7 {[%emt 0:00:04]} 9. Bd3 {[%emt 0:00:11]} Bxd3 {[%emt 0:
00:09]} 10. Qxd3 {[%emt 0:00:05]} e6 {[%emt 0:00:04]} 11. Bd2 {[%emt 0:00:18]}
Ngf6 {[%emt 0:00:30]} 12. O-O-O {[%emt 0:00:36]} Be7 {[%emt 0:00:31]} 13. Kb1 {
[%emt 0:00:33]} O-O {[%emt 0:00:39]} 14. Ne4 {[%emt 0:00:37]} Nxe4 {[%emt 0:00:
39]} 15. Qxe4 {[%emt 0:00:05]} Nf6 {[%emt 0:00:27]} 16. Qe2 {[%emt 0:00:33]}
Qd5 {[%emt 0:01:06]} 17. Ne5 {[%emt 0:00:53]} Rfd8 {[%emt 0:04:36]} 18. Rhe1 {
[%emt 0:15:02]} c5 {[%emt 0:07:38]} 19. c4 {[%emt 0:11:37]} Qd6 {[%emt 0:07:05]
} 20. Bf4 {[%emt 0:00:35]} cxd4 {[%emt 0:09:13]} 21. Nxf7 {[%emt 0:17:30]} Qxf4
{[%emt 0:00:33]} 22. Qxe6 {[%emt 0:00:07]} Kh7 {[%emt 0:00:47]} 23. Nxd8 {
[%emt 0:01:11]} Bxd8 {[%emt 0:01:25]} 24. Qf7 {[%emt 0:00:37]} Qf5+ {[%emt 0:
41:59]} 25. Ka1 {[%emt 0:01:05]} Rc8 {[%emt 0:01:51]} 26. g4 {[%emt 0:06:22]}
Qxg4 {[%emt 0:04:19]} 27. Rxd4 {[%emt 0:03:53]} Qxh5 {[%emt 0:04:47]} 28. Qxb7
{[%emt 0:05:00]} Bb6 {[%emt 0:01:03]} 29. Rd6 {[%emt 0:05:15]} Rxc4 {[%emt 0:
04:09]} 30. Rxf6 {[%emt 0:14:27]} Qe5 {[%emt 0:00:35]} 31. Rxh6+ {[%emt 0:00:
13]} Kxh6 {[%emt 0:00:04]} 32. Rh1+ {[%emt 0:00:16]} Kg6 {[%emt 0:00:13]} 33.
Rg1+ {[%emt 0:00:15]} Kh7 {[%emt 0:00:40]} 34. Qh1+ {[%emt 0:02:26]} Kg8 {
[%emt 0:00:06]} 35. Qa8+ {[%emt 0:00:04]} Kf7 {[%emt 0:00:40]} 36. Qf3+ {[%emt
0:00:27]} Qf4 {[%emt 0:02:42]} 37. Qh5+ {[%emt 0:01:17]} Kg8 {[%emt 0:01:39]}
38. Qd5+ {[%emt 0:03:43]} Kf8 {[%emt 0:00:45]} 39. Qa8+ {[%emt 0:00:21]} Kf7 {
[%emt 0:00:23]} 40. Qd5+ {[%emt 0:00:00]} Kf6 {[%emt 0:00:00]} 41. Qd1 {[%emt
0:00:56]} g6 {[%emt 0:07:59]} 42. a3 {[%emt 0:02:06]} Kg7 {[%emt 0:04:49]} 43.
Rh1 {[%emt 0:02:05]} Bd4 {[%emt 0:00:49]} 44. Ka2 {[%emt 0:01:29]} Qxf2 {[%emt
0:01:01]} 45. Qb3 {[%emt 0:00:41]} Rc2 {[%emt 0:01:24]} 46. Qb7+ {[%emt 0:00:
12]} Qf7+ {[%emt 0:00:05]} 0-1

[Event "ETCC Women 2013"]
[Site "Warsaw"]
[Date "2013.11.11"]
[Round "4"]
[White "Kursova, Maria"]
[Black "Szczepkowska-Horowska, Karina"]
[Result "0-1"]
[ECO "E63"]
[WhiteElo "2339"]
[BlackElo "2382"]
[PlyCount "112"]
[EventDate "2013.??.??"]
[EventCountry "POL"]
[WhiteTeam "Armenien"]
[BlackTeam "Polen"]
[WhiteTeamCountry "ARM"]
[BlackTeamCountry "POL"]
[TimeControl "40/5400+30:1800+30"]

1. d4 {[%emt 0:00:00]} Nf6 {[%emt 0:00:00]} 2. Nf3 {[%emt 0:00:00]} g6 {[%emt
0:00:04]} 3. c4 {[%emt 0:00:01]} Bg7 {[%emt 0:00:19]} 4. g3 {[%emt 0:00:18]}
O-O {[%emt 0:00:19]} 5. Bg2 {[%emt 0:00:20]} d6 {[%emt 0:00:27]} 6. Nc3 {[%emt
0:00:55]} Nc6 {[%emt 0:00:45]} 7. O-O {[%emt 0:00:20]} a6 {[%emt 0:00:27]} 8.
b3 {[%emt 0:00:57]} Rb8 {[%emt 0:01:53]} 9. Bd2 {[%emt 0:01:05]} Nd7 {[%emt 0:
06:53]} 10. e3 {[%emt 0:14:57]} e5 {[%emt 0:03:48]} 11. d5 {[%emt 0:03:04]} Ne7
{[%emt 0:00:17]} 12. e4 {[%emt 0:00:46]} h6 {[%emt 0:04:24]} 13. Ne1 {[%emt 0:
08:49]} f5 {[%emt 0:04:29]} 14. Nd3 {[%emt 0:01:02]} f4 {[%emt 0:07:56]} 15.
Rc1 {[%emt 0:07:59]} g5 {[%emt 0:07:09]} 16. b4 {[%emt 0:06:02]} Nf6 {[%emt 0:
05:54]} 17. c5 {[%emt 0:06:29]} Ng6 {[%emt 0:02:39]} 18. b5 {[%emt 0:08:21]}
dxc5 {[%emt 0:11:20]} 19. Nxc5 {[%emt 0:02:28]} Qd6 {[%emt 0:05:01]} 20. Ne2 {
[%emt 0:12:35]} Rf7 {[%emt 0:13:56]} 21. Qb3 {[%emt 0:10:12]} g4 {[%emt 0:03:
47]} 22. bxa6 {[%emt 0:06:11]} f3 {[%emt 0:03:37]} 23. axb7 {[%emt 0:01:05]}
Bd7 {[%emt 0:02:24]} 24. Nxd7 {[%emt 0:01:29]} Qxd7 {[%emt 0:01:00]} 25. Ba5 {
[%emt 0:02:17]} Ne8 {[%emt 0:02:24]} 26. Rfe1 {[%emt 0:02:07]} fxg2 {[%emt 0:
01:58]} 27. Rc6 {[%emt 0:01:37]} Ne7 {[%emt 0:01:51]} 28. Ra6 {[%emt 0:00:14]}
Nd6 {[%emt 0:00:19]} 29. Ra7 {[%emt 0:01:44]} Rff8 {[%emt 0:03:42]} 30. Rc1 {
[%emt 0:00:10]} Qb5 {[%emt 0:01:09]} 31. Qxb5 {[%emt 0:01:17]} Nxb5 {[%emt 0:
00:01]} 32. Bxc7 {[%emt 0:00:14]} Nxa7 {[%emt 0:00:44]} 33. Bxb8 {[%emt 0:00:
02]} Rxb8 {[%emt 0:00:05]} 34. Rc7 {[%emt 0:00:07]} Bf8 {[%emt 0:02:11]} 35.
Nc3 {[%emt 0:00:32]} Ng6 {[%emt 0:01:32]} 36. Kxg2 {[%emt 0:00:36]} Bd6 {[%emt
0:00:58]} 37. Rd7 {[%emt 0:00:54]} Bb4 {[%emt 0:00:10]} 38. Nd1 {[%emt 0:00:47]
} Nf8 {[%emt 0:00:31]} 39. Rc7 {[%emt 0:00:08]} Bd6 {[%emt 0:00:14]} 40. Rc2 {
[%emt 0:00:00]} Rxb7 {[%emt 0:00:00]} 41. Ne3 {[%emt 0:00:56]} h5 {[%emt 0:02:
48]} 42. h3 {[%emt 0:00:09]} gxh3+ {[%emt 0:01:04]} 43. Kxh3 {[%emt 0:00:02]}
Nh7 {[%emt 0:03:01]} 44. Nf5 {[%emt 0:05:04]} Ba3 {[%emt 0:03:34]} 45. Kh4 {
[%emt 0:10:14]} Nf6 {[%emt 0:04:25]} 46. f3 {[%emt 0:00:36]} Nb5 {[%emt 0:06:
37]} 47. Kg5 {[%emt 0:02:37]} Nh7+ {[%emt 0:02:55]} 48. Kxh5 {[%emt 0:01:13]}
Nd4 {[%emt 0:05:43]} 49. Rc8+ {[%emt 0:01:34]} Kf7 {[%emt 0:00:36]} 50. Nh6+ {
[%emt 0:06:23]} Ke7 {[%emt 0:00:08]} 51. Kg6 {[%emt 0:00:22]} Nf6 {[%emt 0:04:
07]} 52. Rh8 {[%emt 0:05:38]} Rb6 {[%emt 0:01:13]} 53. Nf5+ {[%emt 0:00:56]}
Kd7 {[%emt 0:02:32]} 54. Ra8 {[%emt 0:01:39]} Nxe4+ {[%emt 0:00:32]} 55. d6 {
[%emt 0:00:46]} Nxd6 {[%emt 0:00:25]} 56. Nxd4 {[%emt 0:01:04]} exd4 {[%emt 0:
00:23]} 0-1

[Event "ETCC Women 2013"]
[Site "Warsaw"]
[Date "2013.11.11"]
[Round "4"]
[White "Lagno, Kateryna"]
[Black "Efroimski, Marsel"]
[Result "1-0"]
[ECO "D70"]
[WhiteElo "2542"]
[BlackElo "2313"]
[PlyCount "69"]
[EventDate "2013.??.??"]
[EventCountry "POL"]
[WhiteTeam "Ukraine"]
[BlackTeam "Israel"]
[WhiteTeamCountry "UKR"]
[BlackTeamCountry "ISR"]
[TimeControl "40/5400+30:1800+30"]

1. d4 {[%emt 0:00:00]} Nf6 {[%emt 0:00:00]} 2. c4 {[%emt 0:00:00]} g6 {[%emt 0:
00:00]} 3. Nf3 {[%emt 0:00:26]} Bg7 {[%emt 0:00:00]} 4. e3 {[%emt 0:00:22]} c5
{[%emt 0:15:57]} 5. d5 {[%emt 0:00:58]} b5 {[%emt 0:03:11]} 6. cxb5 {[%emt 0:
01:43]} d6 {[%emt 0:01:54]} 7. Nc3 {[%emt 0:02:17]} O-O {[%emt 0:00:24]} 8. a4
{[%emt 0:00:44]} a6 {[%emt 0:00:57]} 9. Bd2 {[%emt 0:04:15]} Bb7 {[%emt 0:07:
09]} 10. Bc4 {[%emt 0:01:23]} axb5 {[%emt 0:05:25]} 11. axb5 {[%emt 0:00:55]}
Rxa1 {[%emt 0:06:23]} 12. Qxa1 {[%emt 0:00:19]} Qd7 {[%emt 0:10:45]} 13. Qa2 {
[%emt 0:08:44]} Qf5 {[%emt 0:11:52]} 14. O-O {[%emt 0:01:33]} e6 {[%emt 0:03:
34]} 15. dxe6 {[%emt 0:09:28]} Bxf3 {[%emt 0:05:19]} 16. exf7+ {[%emt 0:02:34]}
Kh8 {[%emt 0:01:01]} 17. gxf3 {[%emt 0:00:14]} Ng4 {[%emt 0:09:22]} 18. Be6 {
[%emt 0:06:41]} Qxf3 {[%emt 0:00:16]} 19. Qd5 {[%emt 0:01:21]} Ne5 {[%emt 0:04:
51]} 20. Bc1 {[%emt 0:05:46]} Qxd5 {[%emt 0:07:42]} 21. Bxd5 {[%emt 0:00:38]}
Nxf7 {[%emt 0:00:45]} 22. Ne4 {[%emt 0:07:00]} h6 {[%emt 0:01:35]} 23. Rd1 {
[%emt 0:05:32]} Ne5 {[%emt 0:01:31]} 24. Nxd6 {[%emt 0:02:11]} Rd8 {[%emt 0:01:
29]} 25. Nb7 {[%emt 0:00:29]} Rc8 {[%emt 0:00:31]} 26. Be6 {[%emt 0:04:38]} Re8
{[%emt 0:00:17]} 27. Nxc5 {[%emt 0:01:26]} Bf8 {[%emt 0:00:05]} 28. b4 {[%emt
0:00:36]} Kh7 {[%emt 0:00:20]} 29. Bd5 {[%emt 0:01:03]} Rc8 {[%emt 0:00:45]}
30. f4 {[%emt 0:01:28]} Bxc5 {[%emt 0:00:56]} 31. bxc5 {[%emt 0:00:12]} Ned7 {
[%emt 0:00:04]} 32. Be6 {[%emt 0:01:42]} Rc7 {[%emt 0:00:21]} 33. Bb2 {[%emt 0:
01:45]} g5 {[%emt 0:00:34]} 34. Bf5+ {[%emt 0:00:40]} Kg8 {[%emt 0:00:04]} 35.
c6 {[%emt 0:00:27]} 1-0

[Event "ETCC Women 2013"]
[Site "Warsaw"]
[Date "2013.11.11"]
[Round "4"]
[White "Lanchava, Tea"]
[Black "Nevioselaya, Maria"]
[Result "1/2-1/2"]
[ECO "A01"]
[WhiteElo "2289"]
[BlackElo "2074"]
[PlyCount "80"]
[EventDate "2013.??.??"]
[EventCountry "POL"]
[WhiteTeam "Niederlande"]
[BlackTeam "Weißrussland"]
[WhiteTeamCountry "NED"]
[BlackTeamCountry "BLR"]
[TimeControl "40/5400+30:1800+30"]

1. b3 {[%emt 0:00:00]} Nf6 {[%emt 0:00:00]} 2. Bb2 {[%emt 0:00:00]} e6 {[%emt
0:00:00]} 3. e3 {[%emt 0:00:11]} b6 {[%emt 0:00:00]} 4. f4 {[%emt 0:01:19]} Bb7
{[%emt 0:00:00]} 5. Nf3 {[%emt 0:00:09]} Be7 {[%emt 0:00:07]} 6. Be2 {[%emt 0:
01:08]} c5 {[%emt 0:00:07]} 7. O-O {[%emt 0:00:32]} O-O {[%emt 0:00:03]} 8. Qe1
{[%emt 0:01:39]} d6 {[%emt 0:00:26]} 9. d3 {[%emt 0:01:34]} Nd5 {[%emt 0:01:47]
} 10. Bd1 {[%emt 0:09:10]} Bf6 {[%emt 0:00:08]} 11. c3 {[%emt 0:11:17]} b5 {
[%emt 0:00:42]} 12. d4 {[%emt 0:01:59]} Nc6 {[%emt 0:18:08]} 13. Qd2 {[%emt 0:
17:02]} Qc7 {[%emt 0:16:41]} 14. e4 {[%emt 0:01:38]} Nb6 {[%emt 0:00:25]} 15.
e5 {[%emt 0:01:49]} Be7 {[%emt 0:01:23]} 16. Bc2 {[%emt 0:04:01]} g6 {[%emt 0:
02:22]} 17. a3 {[%emt 0:07:03]} dxe5 {[%emt 0:01:45]} 18. fxe5 {[%emt 0:01:24]}
cxd4 {[%emt 0:02:35]} 19. cxd4 {[%emt 0:02:03]} b4 {[%emt 0:09:45]} 20. Rc1 {
[%emt 0:05:45]} Qd7 {[%emt 0:03:00]} 21. Qh6 {[%emt 0:01:05]} f6 {[%emt 0:05:
44]} 22. Bxg6 {[%emt 0:07:52]} hxg6 {[%emt 0:00:20]} 23. Qxg6+ {[%emt 0:00:07]}
Kh8 {[%emt 0:00:05]} 24. axb4 {[%emt 0:09:07]} Nxb4 {[%emt 0:01:55]} 25. Rc3 {
[%emt 0:00:55]} Bd8 {[%emt 0:16:51]} 26. Qh6+ {[%emt 0:05:26]} Kg8 {[%emt 0:00:
06]} 27. Ne1 {[%emt 0:00:50]} Rf7 {[%emt 0:04:49]} 28. Nd2 {[%emt 0:03:31]}
N6d5 {[%emt 0:02:44]} 29. Rh3 {[%emt 0:02:06]} Rh7 {[%emt 0:00:39]} 30. Rg3+ {
[%emt 0:00:30]} Rg7 {[%emt 0:00:07]} 31. Rh3 {[%emt 0:00:15]} Rh7 {[%emt 0:00:
55]} 32. Qg6+ {[%emt 0:00:27]} Rg7 {[%emt 0:00:08]} 33. Qh5 {[%emt 0:00:17]}
Rh7 {[%emt 0:04:14]} 34. Rg3+ {[%emt 0:01:23]} Kh8 {[%emt 0:00:55]} 35. Qg6 {
[%emt 0:00:13]} Rg7 {[%emt 0:00:23]} 36. Qh5+ {[%emt 0:00:27]} Rh7 {[%emt 0:00:
18]} 37. Qg6 {[%emt 0:00:51]} Rg7 {[%emt 0:00:07]} 38. Rh3+ {[%emt 0:00:10]}
Kg8 {[%emt 0:00:12]} 39. Qh5 {[%emt 0:00:28]} Rh7 {[%emt 0:00:16]} 40. Rg3+ {
[%emt 0:00:00]} Kh8 {[%emt 0:00:00]} 1/2-1/2

[Event "ETCC Women 2013"]
[Site "Warsaw"]
[Date "2013.11.11"]
[Round "4"]
[White "Mamedjarova, Turkan"]
[Black "Saric, Kristina"]
[Result "1-0"]
[ECO "D37"]
[WhiteElo "2250"]
[BlackElo "2250"]
[PlyCount "51"]
[EventDate "2013.??.??"]
[EventCountry "POL"]
[WhiteTeam "Aserbeidschan"]
[BlackTeam "Kroatien"]
[WhiteTeamCountry "AZE"]
[BlackTeamCountry "CRO"]
[TimeControl "40/5400+30:1800+30"]

1. d4 {[%emt 0:00:00]} Nf6 2. Nf3 d5 {[%emt 0:00:20]} 3. c4 {[%emt 0:00:18]} e6
{[%emt 0:00:22]} 4. Nc3 {[%emt 0:00:12]} dxc4 {[%emt 0:00:20]} 5. e3 {[%emt 0:
00:55]} a6 {[%emt 0:01:27]} 6. Bxc4 {[%emt 0:00:19]} b5 {[%emt 0:02:34]} 7. Bd3
{[%emt 0:00:51]} c5 {[%emt 0:02:05]} 8. dxc5 {[%emt 0:06:46]} Bxc5 {[%emt 0:01:
30]} 9. O-O {[%emt 0:02:00]} Bb7 {[%emt 0:03:50]} 10. Ng5 {[%emt 0:08:46]} Nbd7
{[%emt 0:07:05]} 11. f4 {[%emt 0:13:52]} h6 {[%emt 0:09:43]} 12. Nge4 {[%emt 0:
02:06]} O-O {[%emt 0:10:52]} 13. a3 {[%emt 0:02:26]} Qe7 {[%emt 0:11:24]} 14.
Qe2 {[%emt 0:05:26]} Bb6 {[%emt 0:00:49]} 15. Kh1 {[%emt 0:04:00]} Rac8 {[%emt
0:10:31]} 16. Bd2 {[%emt 0:12:05]} Rfd8 {[%emt 0:02:49]} 17. Be1 {[%emt 0:03:
04]} Nd5 {[%emt 0:08:35]} 18. Nxd5 {[%emt 0:03:26]} exd5 {[%emt 0:01:43]} 19.
Bb4 {[%emt 0:01:12]} Nc5 {[%emt 0:08:05]} 20. Ng3 {[%emt 0:02:29]} Qe8 {[%emt
0:02:27]} 21. Nh5 {[%emt 0:07:22]} Qd7 {[%emt 0:05:43]} 22. Bc2 Ne4 {[%emt 0:
04:50]} 23. Bxe4 {[%emt 0:09:33]} dxe4 {[%emt 0:00:03]} 24. Bc3 {[%emt 0:00:51]
} Bd5 {[%emt 0:01:58]} 25. f5 {[%emt 0:03:04]} Rxc3 {[%emt 0:02:02]} 26. Qg4 {
[%emt 0:00:48]} 1-0